[Event "Sambir Charity 2024"]
[Site "Sambir"]
[Date "2024.09.22"]
[Round "3.2"]
[White "Karvatskyi, Oleksii"]
[Black "Tretiak, Igor"]
[Result "1/2-1/2"]
[ECO "A00"]
[WhiteElo "2144"]
[BlackElo "1828"]
[PlyCount "136"]
[EventDate "2024.09.10"]
[EventType "swiss"]
[EventCountry "UKR"]
[TimeControl "5400+30"]

1. Nc3 {[%emt 1:20:51]} d5 {[%emt 1:20:53]} 2. e4 {[%emt 0:00:26]} dxe4 {[%emt 0:01:57]} 3. Nxe4 {[%emt 0:00:26]} Bf5 {[%emt 0:00:30]} 4. Ng3 {[%emt 0:00:32]} Bg6 {[%emt 0:00:26]} 5. Nf3 {[%emt 0:00:27]} Nf6 {[%emt 0:00:50]} 6. Bb5+ {[%emt 0:00:34]} c6 {[%emt 0:00:35]} 7. Bc4 {[%emt 0:00:32]} Nbd7 {[%emt 0:00:57]} 8. d4 {[%emt 0:00:32]} e6 {[%emt 0:00:30]} 9. Bf4 {[%emt 0:00:41]} Be7 {[%emt 0:01:25]} 10. c3 {[%emt 0:00:35]} Qb6 {[%emt 0:00:45]} 11. Qe2 {[%emt 0:00:34]} Nd5 {[%emt 0:01:05]} 12. Bc1 {[%emt 0:01:06]} O-O {[%emt 0:01:10]} 13. O-O {[%emt 0:00:42]} Bd6 {[%emt 0:00:56]} 14. Bd3 {[%emt 0:01:15]} Bxd3 {[%emt 0:00:57]} 15. Qxd3 {[%emt 0:00:27]} h6 {[%emt 0:01:04]} 16. c4 {[%emt 0:00:57]} Nb4 17. Qe2 {[%emt 0:00:42]} c5 {[%emt 0:01:54]} 18. a3 {[%emt 0:00:30]} Nc6 {[%emt 0:00:43]} 19. dxc5 {[%emt 0:00:56]} Bxc5 {[%emt 0:00:36]} 20. b4 {[%emt 0:00:29]} Nd4 {[%emt 0:00:26]} 21. Nxd4 {[%emt 0:00:52]} Bxd4 {[%emt 0:00:26]} 22. c5 {[%emt 0:00:28]} Qc7 {[%emt 0:00:48]} 23. Ra2 {[%emt 0:00:32]} b6 24. Rd1 {[%emt 0:01:19]} bxc5 {[%emt 0:01:37]} 25. Rc2 {[%emt 0:00:27]} Qb7 26. bxc5 {[%emt 0:00:36]} Bxc5 {[%emt 0:02:10]} 27. Ne4 {[%emt 0:02:07]} Be7 {[%emt 0:00:46]} 28. Qf3 {[%emt 0:01:08]} Kh8 {[%emt 0:00:50]} 29. Re2 {[%emt 0:00:39]} Nf6 {[%emt 0:00:33]} 30. Rde1 {[%emt 0:02:00]} Nxe4 {[%emt 0:00:32]} 31. Rxe4 {[%emt 0:00:27]} Qc7 {[%emt 0:00:32]} 32. Qh5 {[%emt 0:00:35]} Qc5 {[%emt 0:00:28]} 33. Re5 {[%emt 0:00:35]} Qd4 {[%emt 0:00:30]} 34. h3 {[%emt 0:00:40]} Bf6 {[%emt 0:00:30]} 35. R5e4 {[%emt 0:00:33]} Qd5 {[%emt 0:00:25]} 36. Qf3 {[%emt 0:00:31]} Qd8 {[%emt 0:00:36]} 37. Rd1 {[%emt 0:00:50]} Qe7 {[%emt 0:00:26]} 38. Qh5 {[%emt 0:00:27]} Bg5 {[%emt 0:00:31]} 39. f4 {[%emt 0:00:50]} Bf6 {[%emt 0:00:31]} 40. Kh1 {[%emt 0:00:32]} Rfd8 {[%emt 0:00:28]} 41. Rf1 {[%emt 0:00:30]} Qb7 {[%emt 0:00:31]} 42. Rb4 {[%emt 0:00:35]} Qd5 {[%emt 0:00:28]} 43. Qxf7 {[%emt 0:00:30]} Rd7 {[%emt 0:00:32]} 44. Qg6 {[%emt 0:00:29]} Qd3 {[%emt 0:00:32]} 45. Qxd3 {[%emt 0:00:34]} Rxd3 {[%emt 0:00:26]} 46. Re4 {[%emt 0:00:28]} Be7 {[%emt 0:00:33]} 47. a4 {[%emt 0:00:32]} Bf6 {[%emt 0:00:33]} 48. Rxe6 {[%emt 0:00:29]} Rd4 {[%emt 0:00:28]} 49. a5 {[%emt 0:00:27]} Ra4 {[%emt 0:00:28]} 50. a6 {[%emt 0:00:31]} Kg8 {[%emt 0:00:32]} 51. Be3 {[%emt 0:00:31]} Kf7 {[%emt 0:00:27]} 52. f5 {[%emt 0:00:26]} Re8 {[%emt 0:00:32]} 53. Rxe8 {[%emt 0:01:04]} Kxe8 {[%emt 0:00:26]} 54. Bxa7 {[%emt 0:00:27]} Rxa6 {[%emt 0:00:26]} 55. Be3 {[%emt 0:00:28]} Ra1 {[%emt 0:00:28]} 56. Rxa1 {[%emt 0:00:29]} Bxa1 {[%emt 0:00:26]} 57. g4 {[%emt 0:00:26]} Ke7 58. Kg2 {[%emt 0:00:27]} Kf6 {[%emt 0:01:00]} 59. Kf3 {[%emt 0:00:27]} Ke5 {[%emt 0:00:28]} 60. Bc5 {[%emt 0:00:36]} h5 {[%emt 0:00:36]} 61. Bf8 {[%emt 0:00:34]} hxg4+ {[%emt 0:00:26]} 62. Kxg4 {[%emt 0:00:36]} Kf6 {[%emt 0:00:34]} 63. h4 {[%emt 0:00:50]} g6 {[%emt 0:00:27]} 64. fxg6 {[%emt 0:00:27]} Kxg6 {[%emt 0:00:26]} 65. h5+ {[%emt 0:00:26]} Kh7 {[%emt 0:00:26]} 66. Kf5 {[%emt 0:00:29]} Bb2 {[%emt 0:00:27]} 67. h6 {[%emt 0:00:32]} Bc1 {[%emt 0:00:26]} 68. Kg4 {[%emt 0:00:27]} Bxh6 {[%emt 0:00:27]} 1/2-1/2

[Event "Sambir Charity 2024"]
[Site "Sambir"]
[Date "2024.09.22"]
[Round "3.3"]
[White "Baluh, Alina"]
[Black "Baziuk, Vladyslav"]
[Result "0-1"]
[ECO "D94"]
[WhiteElo "1600"]
[BlackElo "2247"]
[PlyCount "130"]
[EventDate "2024.09.10"]
[EventType "swiss"]
[EventCountry "UKR"]
[TimeControl "5400+30"]

1. d4 {[%emt 1:20:55]} Nf6 {[%emt 1:20:53]} 2. c4 {[%emt 0:00:27]} g6 {[%emt 0:00:34]} 3. Nc3 {[%emt 0:00:29]} d5 {[%emt 0:00:26]} 4. e3 {[%emt 0:00:39]} Bg7 {[%emt 0:00:26]} 5. Nf3 {[%emt 0:00:27]} O-O {[%emt 0:00:27]} 6. Be2 {[%emt 0:00:30]} dxc4 {[%emt 0:00:49]} 7. Bxc4 {[%emt 0:00:27]} c5 {[%emt 0:00:27]} 8. O-O {[%emt 0:00:39]} cxd4 {[%emt 0:01:31]} 9. Nxd4 {[%emt 0:00:31]} a6 {[%emt 0:00:28]} 10. b3 {[%emt 0:02:18]} b5 {[%emt 0:00:35]} 11. Be2 {[%emt 0:00:40]} Bb7 {[%emt 0:00:26]} 12. Bb2 {[%emt 0:00:29]} Qb6 {[%emt 0:00:38]} 13. Bf3 {[%emt 0:00:45]} Nbd7 {[%emt 0:00:37]} 14. Bxb7 {[%emt 0:00:47]} Qxb7 {[%emt 0:00:26]} 15. Qf3 {[%emt 0:00:26]} Qxf3 {[%emt 0:01:49]} 16. Nxf3 {[%emt 0:00:28]} Nc5 {[%emt 0:00:44]} 17. Rfd1 {[%emt 0:00:52]} Rfc8 {[%emt 0:01:18]} 18. Rac1 {[%emt 0:01:46]} b4 {[%emt 0:01:30]} 19. Ne2 {[%emt 0:01:05]} Nfe4 {[%emt 0:00:34]} 20. Bxg7 {[%emt 0:00:36]} Kxg7 {[%emt 0:00:26]} 21. Rc4 {[%emt 0:01:26]} a5 {[%emt 0:00:56]} 22. Rdc1 {[%emt 0:00:48]} Rd8 {[%emt 0:00:27]} 23. g3 {[%emt 0:01:00]} Nd3 {[%emt 0:00:38]} 24. Rf1 {[%emt 0:01:00]} f5 {[%emt 0:01:12]} 25. Ned4 {[%emt 0:00:56]} Kf6 {[%emt 0:01:10]} 26. Rc6+ {[%emt 0:01:04]} Rd6 {[%emt 0:00:52]} 27. Rc7 {[%emt 0:00:59]} Raa6 {[%emt 0:01:08]} 28. Nb5 {[%emt 0:01:14]} Rd5 {[%emt 0:01:06]} 29. Nbd4 {[%emt 0:00:35]} g5 {[%emt 0:01:49]} 30. Rc2 {[%emt 0:00:56]} h6 {[%emt 0:00:44]} 31. Rd1 {[%emt 0:00:39]} Ndxf2 {[%emt 0:00:31]} 32. Rxf2 {[%emt 0:00:26]} Nxf2 {[%emt 0:00:26]} 33. Kxf2 {[%emt 0:00:27]} e5 {[%emt 0:00:27]} 34. Rc1 {[%emt 0:00:32]} exd4 {[%emt 0:00:28]} 35. Nxd4 {[%emt 0:00:35]} f4 {[%emt 0:00:43]} 36. gxf4 {[%emt 0:00:29]} gxf4 {[%emt 0:00:26]} 37. Rc8 {[%emt 0:00:30]} fxe3+ {[%emt 0:00:32]} 38. Kxe3 {[%emt 0:00:27]} Rh5 {[%emt 0:00:29]} 39. Nf3 {[%emt 0:00:33]} Re6+ {[%emt 0:00:30]} 40. Kf2 {[%emt 0:00:29]} Rd5 {[%emt 0:00:32]} 41. Rc2 {[%emt 0:00:31]} Rd1 {[%emt 0:00:37]} 42. Kg3 {[%emt 0:00:31]} Rdd6 {[%emt 0:00:35]} 43. Rc5 {[%emt 0:00:30]} Ra6 {[%emt 0:00:29]} 44. Kf4 {[%emt 0:00:31]} Rec6 {[%emt 0:00:27]} 45. Rf5+ {[%emt 0:00:26]} Kg7 {[%emt 0:00:26]} 46. Re5 {[%emt 0:00:28]} Rf6+ {[%emt 0:00:28]} 47. Kg3 {[%emt 0:00:27]} Rfe6 {[%emt 0:00:29]} 48. Rc5 {[%emt 0:00:35]} Re2 {[%emt 0:00:27]} 49. Rc7+ {[%emt 0:00:27]} Kf8 {[%emt 0:00:30]} 50. Rc8+ {[%emt 0:00:34]} Ke7 {[%emt 0:00:27]} 51. Rc7+ {[%emt 0:00:32]} Kd8 {[%emt 0:00:28]} 52. Rh7 {[%emt 0:00:30]} Rxa2 {[%emt 0:00:29]} 53. Nd4 {[%emt 0:00:27]} Rd2 {[%emt 0:00:33]} 54. Nb5 {[%emt 0:00:32]} Rd3+ {[%emt 0:00:36]} 55. Kg4 {[%emt 0:00:27]} Rb6 {[%emt 0:00:40]} 56. Na7 {[%emt 0:00:29]} Rxb3 {[%emt 0:00:31]} 57. Rh8+ {[%emt 0:00:31]} Kc7 {[%emt 0:00:26]} 58. Nc8 {[%emt 0:00:27]} Rc6 {[%emt 0:00:29]} 59. Ne7 {[%emt 0:00:32]} Rd6 {[%emt 0:00:28]} 60. Nf5 {[%emt 0:00:30]} Rg6+ {[%emt 0:00:27]} 61. Kf4 {[%emt 0:00:30]} a4 {[%emt 0:00:31]} 62. Nxh6 {[%emt 0:00:30]} Rh3 {[%emt 0:00:31]} 63. Rh7+ {[%emt 0:00:27]} Kb6 {[%emt 0:00:27]} 64. Rh8 {[%emt 0:00:32]} Rhxh6 {[%emt 0:00:30]} 65. Rb8+ Ka5 0-1

[Event "Sambir Charity 2024"]
[Site "Sambir"]
[Date "2024.09.22"]
[Round "3.4"]
[White "Mikhaletz, Lubomir"]
[Black "Kipen, Svyatoslav"]
[Result "1-0"]
[ECO "A01"]
[WhiteElo "2272"]
[BlackElo "1769"]
[PlyCount "99"]
[EventDate "2024.09.10"]
[EventType "swiss"]
[EventCountry "UKR"]
[TimeControl "5400+30"]

1. b3 {[%emt 1:20:52]} d5 {[%emt 1:20:52]} 2. Bb2 {[%emt 0:00:26]} Nf6 {[%emt 0:00:27]} 3. e3 {[%emt 0:00:29]} g6 {[%emt 0:00:27]} 4. Bxf6 {[%emt 0:00:34]} exf6 {[%emt 0:00:27]} 5. c4 {[%emt 0:00:30]} dxc4 {[%emt 0:00:52]} 6. Bxc4 {[%emt 0:00:27]} Bg7 {[%emt 0:00:27]} 7. Nc3 {[%emt 0:00:32]} O-O {[%emt 0:00:29]} 8. Nf3 {[%emt 0:00:31]} Nc6 {[%emt 0:00:27]} 9. d4 {[%emt 0:00:31]} f5 {[%emt 0:00:39]} 10. g3 {[%emt 0:00:31]} Re8 {[%emt 0:01:48]} 11. O-O {[%emt 0:00:38]} g5 {[%emt 0:01:36]} 12. b4 {[%emt 0:01:50]} h6 {[%emt 0:02:50]} 13. Qb3 {[%emt 0:00:51]} Qd7 {[%emt 0:00:35]} 14. Rad1 {[%emt 0:01:20]} f4 {[%emt 0:01:03]} 15. Rfe1 {[%emt 0:02:34]} fxg3 {[%emt 0:01:12]} 16. fxg3 {[%emt 0:01:12]} Qf5 {[%emt 0:02:46]} 17. Bd5 {[%emt 0:00:42]} Ne7 {[%emt 0:00:50]} 18. Be4 {[%emt 0:00:55]} Qe6 {[%emt 0:00:36]} 19. d5 {[%emt 0:00:48]} Qf6 {[%emt 0:00:26]} 20. Nd4 {[%emt 0:00:41]} Qe5 {[%emt 0:01:05]} 21. Bf3 {[%emt 0:01:10]} Nf5 {[%emt 0:00:41]} 22. Ncb5 {[%emt 0:00:47]} a6 {[%emt 0:00:43]} 23. Nxf5 {[%emt 0:00:29]} Bxf5 {[%emt 0:00:27]} 24. Nd4 {[%emt 0:00:47]} Be4 {[%emt 0:00:28]} 25. Rf1 {[%emt 0:01:01]} Bxf3 {[%emt 0:00:29]} 26. Rxf3 {[%emt 0:00:27]} g4 {[%emt 0:00:26]} 27. Rf4 {[%emt 0:00:27]} Qxe3+ {[%emt 0:00:28]} 28. Qxe3 {[%emt 0:00:28]} Rxe3 {[%emt 0:00:27]} 29. Rxg4 {[%emt 0:00:36]} Re5 {[%emt 0:00:39]} 30. Nf3 {[%emt 0:00:38]} Re3 {[%emt 0:00:35]} 31. Nh4 {[%emt 0:00:38]} Re5 {[%emt 0:00:28]} 32. d6 {[%emt 0:00:38]} cxd6 {[%emt 0:00:34]} 33. Rxd6 {[%emt 0:00:32]} Kf8 {[%emt 0:00:27]} 34. Rd7 {[%emt 0:00:37]} Rb5 {[%emt 0:00:36]} 35. Rf4 {[%emt 0:00:31]} f6 {[%emt 0:00:27]} 36. Nf5 {[%emt 0:00:34]} Bh8 {[%emt 0:00:29]} 37. Nxh6 {[%emt 0:00:42]} Rc8 {[%emt 0:00:35]} 38. Rf7+ {[%emt 0:00:31]} Ke8 {[%emt 0:00:26]} 39. Rh7 {[%emt 0:00:28]} Rc1+ {[%emt 0:00:29]} 40. Kg2 {[%emt 0:00:26]} Rc2+ {[%emt 0:00:27]} 41. Kf3 {[%emt 0:00:29]} Rc3+ {[%emt 0:00:29]} 42. Ke2 {[%emt 0:00:37]} Rc2+ {[%emt 0:00:36]} 43. Kd3 {[%emt 0:00:27]} Rxh2 {[%emt 0:00:27]} 44. Rxh8+ {[%emt 0:00:37]} Kd7 {[%emt 0:00:26]} 45. Rd4+ {[%emt 0:00:40]} Kc7 {[%emt 0:00:32]} 46. a4 {[%emt 0:00:38]} Rbh5 {[%emt 0:00:29]} 47. Rc4+ {[%emt 0:00:36]} Kd7 {[%emt 0:00:37]} 48. Rh7+ {[%emt 0:00:31]} Kd6 {[%emt 0:00:31]} 49. Nf5+ {[%emt 0:00:30]} Ke5 {[%emt 0:00:29]} 50. Rc5+ {[%emt 0:00:29]} 1-0

[Event "Sambir Charity 2024"]
[Site "Sambir"]
[Date "2024.09.22"]
[Round "4.1"]
[White "Dubnevych, Maksym"]
[Black "Bondarenko, Stanislav"]
[Result "1-0"]
[ECO "B07"]
[WhiteElo "2267"]
[BlackElo "1780"]
[PlyCount "43"]
[EventDate "2024.09.10"]
[EventType "swiss"]
[EventCountry "UKR"]
[TimeControl "5400+30"]

1. Nc3 {[%emt 1:20:52]} Nf6 {[%emt 1:20:52]} 2. e4 {[%emt 0:00:26]} d6 {[%emt 0:00:25]} 3. d4 {[%emt 0:00:26]} g6 {[%emt 0:00:29]} 4. Bg5 {[%emt 0:00:26]} Bg7 {[%emt 0:00:26]} 5. e5 {[%emt 0:00:26]} dxe5 {[%emt 0:00:27]} 6. dxe5 {[%emt 0:00:26]} Qxd1+ {[%emt 0:00:27]} 7. Rxd1 {[%emt 0:00:26]} Ng4 {[%emt 0:00:36]} 8. h3 {[%emt 0:00:26]} Nxe5 {[%emt 0:00:29]} 9. Nd5 {[%emt 0:00:25]} O-O {[%emt 0:01:14]} 10. Nxc7 {[%emt 0:00:27]} Bf5 {[%emt 0:00:39]} 11. Nxa8 {[%emt 0:00:28]} Nbc6 {[%emt 0:00:25]} 12. Nc7 {[%emt 0:00:27]} Bxc2 {[%emt 0:00:28]} 13. Rd2 {[%emt 0:00:26]} Be4 {[%emt 0:00:35]} 14. Nd5 {[%emt 0:00:30]} f6 {[%emt 0:00:28]} 15. Bf4 {[%emt 0:00:28]} e6 {[%emt 0:00:28]} 16. Nc3 {[%emt 0:00:27]} g5 {[%emt 0:00:50]} 17. Bxe5 {[%emt 0:00:27]} Bxg2 {[%emt 0:00:30]} 18. Bxg2 {[%emt 0:00:26]} Nxe5 {[%emt 0:00:27]} 19. Nf3 {[%emt 0:00:36]} Nc4 {[%emt 0:00:26]} 20. Re2 {[%emt 0:00:30]} f5 {[%emt 0:00:28]} 21. O-O {[%emt 0:00:27]} g4 {[%emt 0:00:26]} 22. Ng5 {[%emt 0:00:28]} 1-0

[Event "Sambir Charity 2024"]
[Site "Sambir"]
[Date "2024.09.22"]
[Round "4.2"]
[White "Baziuk, Vladyslav"]
[Black "Stoyko, Oleh"]
[Result "1/2-1/2"]
[ECO "B12"]
[WhiteElo "2247"]
[BlackElo "1792"]
[PlyCount "174"]
[EventDate "2024.09.10"]
[EventType "swiss"]
[EventCountry "UKR"]
[TimeControl "5400+30"]

1. e4 {[%emt 1:20:52]} c6 {[%emt 1:20:51]} 2. d4 {[%emt 0:00:26]} d5 {[%emt 0:00:25]} 3. e5 {[%emt 0:00:25]} c5 {[%emt 0:00:26]} 4. dxc5 {[%emt 0:00:26]} e6 {[%emt 0:00:26]} 5. a3 {[%emt 0:00:28]} Bxc5 {[%emt 0:00:26]} 6. Nf3 {[%emt 0:00:26]} f6 {[%emt 0:00:33]} 7. b4 {[%emt 0:01:13]} Bb6 {[%emt 0:00:29]} 8. Bb2 {[%emt 0:00:26]} Nh6 {[%emt 0:01:15]} 9. Bd3 {[%emt 0:00:40]} O-O {[%emt 0:01:05]} 10. O-O {[%emt 0:01:09]} Nc6 {[%emt 0:01:02]} 11. exf6 {[%emt 0:03:04]} gxf6 {[%emt 0:00:26]} 12. Nbd2 {[%emt 0:00:26]} e5 {[%emt 0:01:02]} 13. c4 {[%emt 0:02:23]} d4 {[%emt 0:00:53]} 14. Re1 {[%emt 0:01:40]} Bc7 {[%emt 0:01:40]} 15. Qc2 {[%emt 0:01:09]} Qd7 {[%emt 0:00:57]} 16. b5 {[%emt 0:00:41]} Nd8 17. c5 {[%emt 0:00:29]} Qg7 {[%emt 0:01:14]} 18. Nc4 {[%emt 0:00:43]} Ne6 {[%emt 0:00:51]} 19. Nd6 {[%emt 0:01:08]} Nf4 {[%emt 0:00:55]} 20. g3 {[%emt 0:00:35]} Bxd6 {[%emt 0:00:51]} 21. cxd6 {[%emt 0:00:26]} Bg4 {[%emt 0:00:52]} 22. Nh4 {[%emt 0:00:38]} Rac8 {[%emt 0:00:37]} 23. Qd2 {[%emt 0:00:36]} Rcd8 {[%emt 0:01:20]} 24. a4 {[%emt 0:00:33]} Nxd3 {[%emt 0:00:39]} 25. Qxd3 {[%emt 0:00:27]} Rf7 {[%emt 0:00:47]} 26. Ba3 {[%emt 0:00:28]} Be6 {[%emt 0:00:43]} 27. Rac1 {[%emt 0:00:41]} f5 {[%emt 0:00:40]} 28. Qd2 {[%emt 0:00:49]} e4 {[%emt 0:00:44]} 29. Red1 {[%emt 0:00:36]} Bb3 {[%emt 0:00:41]} 30. Re1 {[%emt 0:00:32]} Ng4 {[%emt 0:00:34]} 31. Qb4 {[%emt 0:00:29]} Be6 {[%emt 0:00:37]} 32. Bb2 {[%emt 0:00:25]} Qe5 {[%emt 0:01:01]} 33. Qxd4 {[%emt 0:00:46]} Qxd4 {[%emt 0:00:35]} 34. Bxd4 {[%emt 0:00:26]} Rxd6 {[%emt 0:00:30]} 35. Bc5 {[%emt 0:00:32]} Rd2 {[%emt 0:00:32]} 36. Bxa7 {[%emt 0:00:29]} Ra2 {[%emt 0:00:40]} 37. Ra1 {[%emt 0:00:37]} Rb2 {[%emt 0:00:37]} 38. Bd4 {[%emt 0:00:28]} Rb4 {[%emt 0:00:26]} 39. Bc5 {[%emt 0:00:35]} Rc4 {[%emt 0:00:28]} 40. Rec1 {[%emt 0:00:30]} Rxc1+ {[%emt 0:00:33]} 41. Rxc1 Rc7 {[%emt 0:00:30]} 42. a5 {[%emt 0:01:10]} Rc8 {[%emt 0:00:32]} 43. Ng2 {[%emt 0:00:41]} Ne5 {[%emt 0:00:26]} 44. Ba3 {[%emt 0:00:28]} Nf3+ {[%emt 0:00:39]} 45. Kh1 {[%emt 0:00:26]} Rxc1+ {[%emt 0:00:33]} 46. Bxc1 {[%emt 0:00:27]} Bc4 {[%emt 0:00:28]} 47. a6 {[%emt 0:00:36]} bxa6 {[%emt 0:00:29]} 48. b6 {[%emt 0:00:26]} Bd5 {[%emt 0:00:47]} 49. Ne3 {[%emt 0:00:26]} Bb7 {[%emt 0:00:32]} 50. Nxf5 {[%emt 0:00:26]} Nd2 {[%emt 0:00:47]} 51. Kg1 {[%emt 0:00:40]} Nc4 {[%emt 0:00:26]} 52. Be3 a5 53. Bc5 {[%emt 0:01:13]} a4 {[%emt 0:00:56]} 54. Nd6 {[%emt 0:00:32]} Nxd6 {[%emt 0:00:32]} 55. Bxd6 {[%emt 0:00:26]} Kf7 {[%emt 0:00:27]} 56. Kf1 {[%emt 0:00:30]} Ke6 {[%emt 0:00:27]} 57. Ba3 {[%emt 0:00:31]} Kd5 {[%emt 0:00:27]} 58. Ke2 {[%emt 0:00:27]} Kc4 {[%emt 0:00:37]} 59. Kd2 {[%emt 0:00:32]} Kb3 {[%emt 0:00:27]} 60. Be7 {[%emt 0:00:27]} a3 {[%emt 0:00:53]} 61. Bf6 {[%emt 0:00:31]} Kc4 {[%emt 0:00:27]} 62. Kc2 {[%emt 0:00:29]} Kb5 {[%emt 0:00:37]} 63. Bd4 {[%emt 0:00:28]} Bd5 {[%emt 0:00:28]} 64. Kc3 {[%emt 0:00:30]} a2 {[%emt 0:00:26]} 65. Kb2 {[%emt 0:00:26]} Kc4 {[%emt 0:00:29]} 66. Be3 {[%emt 0:00:31]} Kb5 {[%emt 0:00:28]} 67. g4 {[%emt 0:00:28]} Kc6 {[%emt 0:00:31]} 68. Bd4 {[%emt 0:00:30]} Kd7 {[%emt 0:00:29]} 69. Ka3 {[%emt 0:00:27]} Kc6 {[%emt 0:00:30]} 70. Kb2 {[%emt 0:00:32]} Kd7 {[%emt 0:00:26]} 71. h4 {[%emt 0:00:30]} Be6 {[%emt 0:00:29]} 72. g5 {[%emt 0:00:26]} Bf7 {[%emt 0:00:33]} 73. Kc2 {[%emt 0:00:43]} Kc6 {[%emt 0:00:29]} 74. Kd2 {[%emt 0:00:29]} a1=Q {[%emt 0:00:35]} 75. Bxa1 {[%emt 0:00:26]} Kxb6 {[%emt 0:00:25]} 76. Ke3 {[%emt 0:00:26]} Bg6 {[%emt 0:00:35]} 77. h5 {[%emt 0:00:43]} Bxh5 {[%emt 0:00:26]} 78. Kxe4 {[%emt 0:00:26]} Bg6+ {[%emt 0:00:32]} 79. Ke5 {[%emt 0:00:26]} Kc7 {[%emt 0:00:37]} 80. f4 {[%emt 0:00:30]} Kd7 {[%emt 0:00:27]} 81. f5 {[%emt 0:00:26]} Bh5 {[%emt 0:00:31]} 82. Kf6 {[%emt 0:00:36]} Bg4 {[%emt 0:00:28]} 83. Bb2 {[%emt 0:00:27]} Ke8 {[%emt 0:00:28]} 84. Ba3 {[%emt 0:00:39]} Bd1 {[%emt 0:00:35]} 85. Kg7 {[%emt 0:00:30]} Bc2 {[%emt 0:00:27]} 86. Kf6 {[%emt 0:00:31]} Bb1 {[%emt 0:00:26]} 87. g6 {[%emt 0:00:31]} hxg6 {[%emt 0:00:26]} 1/2-1/2

[Event "Sambir Charity 2024"]
[Site "Sambir"]
[Date "2024.09.22"]
[Round "4.3"]
[White "Terletsky, Oleg A."]
[Black "Mikhaletz, Lubomir"]
[Result "0-1"]
[ECO "B00"]
[WhiteElo "2036"]
[BlackElo "2272"]
[PlyCount "48"]
[EventDate "2024.09.10"]
[EventType "swiss"]
[EventCountry "UKR"]
[TimeControl "5400+30"]

1. e4 {[%emt 1:20:51]} Nc6 {[%emt 1:20:53]} 2. d4 {[%emt 0:00:28]} d5 {[%emt 0:00:26]} 3. e5 {[%emt 0:00:32]} f6 {[%emt 0:00:26]} 4. f4 {[%emt 0:00:38]} Nh6 {[%emt 0:00:26]} 5. Nf3 {[%emt 0:00:38]} Bg4 {[%emt 0:00:27]} 6. c3 {[%emt 0:00:41]} e6 {[%emt 0:00:29]} 7. Bd3 {[%emt 0:00:41]} Nf5 {[%emt 0:01:30]} 8. O-O {[%emt 0:00:42]} fxe5 {[%emt 0:00:54]} 9. fxe5 {[%emt 0:00:32]} Be7 {[%emt 0:01:09]} 10. h3 {[%emt 0:00:28]} Bxf3 {[%emt 0:00:27]} 11. Qxf3 {[%emt 0:00:38]} O-O {[%emt 0:00:30]} 12. Qg4 {[%emt 0:00:36]} g6 {[%emt 0:00:56]} 13. Rf3 {[%emt 0:01:24]} Qe8 {[%emt 0:00:57]} 14. Na3 {[%emt 0:01:00]} h5 {[%emt 0:01:35]} 15. Qf4 {[%emt 0:01:51]} Nfxd4 {[%emt 0:00:30]} 16. Qh6 {[%emt 0:00:33]} Nxf3+ {[%emt 0:00:48]} 17. gxf3 {[%emt 0:00:29]} Nxe5 {[%emt 0:00:29]} 18. Bc2 {[%emt 0:00:50]} Qf7 {[%emt 0:02:07]} 19. Be3 {[%emt 0:01:02]} Qxf3 {[%emt 0:01:15]} 20. Rd1 {[%emt 0:03:04]} Qg3+ {[%emt 0:00:36]} 21. Kh1 {[%emt 0:00:27]} Qxh3+ {[%emt 0:00:30]} 22. Kg1 {[%emt 0:00:26]} Rf3 {[%emt 0:01:00]} 23. Bf2 {[%emt 0:00:47]} Rxf2 {[%emt 0:00:40]} 24. Kxf2 {[%emt 0:00:36]} Ng4+ {[%emt 0:00:43]} 0-1

[Event "Sambir Charity 2024"]
[Site "Sambir"]
[Date "2024.09.22"]
[Round "4.4"]
[White "Lemba, Albert"]
[Black "Pankiv, Maksym"]
[Result "0-1"]
[ECO "B90"]
[WhiteElo "1882"]
[BlackElo "1961"]
[PlyCount "97"]
[EventDate "2024.09.10"]
[EventType "swiss"]
[EventCountry "UKR"]
[TimeControl "5400+30"]

1. e4 {[%emt 1:20:51]} c5 {[%emt 1:20:50]} 2. Nf3 {[%emt 0:00:27]} d6 {[%emt 0:00:27]} 3. d4 {[%emt 0:00:27]} cxd4 {[%emt 0:00:26]} 4. Nxd4 {[%emt 0:00:26]} Nf6 {[%emt 0:00:26]} 5. Nc3 {[%emt 0:00:26]} a6 {[%emt 0:00:26]} 6. Rg1 {[%emt 0:00:29]} e5 {[%emt 0:00:26]} 7. Nb3 {[%emt 0:00:32]} Be6 {[%emt 0:00:36]} 8. g4 {[%emt 0:00:42]} Be7 {[%emt 0:00:44]} 9. f4 exf4 {[%emt 0:02:00]} 10. Bxf4 {[%emt 0:01:11]} Nc6 {[%emt 0:01:08]} 11. Qe2 {[%emt 0:01:34]} Ne5 {[%emt 0:00:40]} 12. h3 {[%emt 0:01:54]} Rc8 {[%emt 0:01:20]} 13. O-O-O {[%emt 0:00:38]} Qc7 {[%emt 0:00:28]} 14. Bxe5 {[%emt 0:01:01]} dxe5 {[%emt 0:00:28]} 15. g5 {[%emt 0:00:32]} Nd7 {[%emt 0:00:53]} 16. Nd5 {[%emt 0:00:29]} Bxd5 {[%emt 0:00:36]} 17. exd5 {[%emt 0:00:47]} Nc5 {[%emt 0:01:29]} 18. h4 {[%emt 0:01:39]} b5 {[%emt 0:01:16]} 19. Bh3 {[%emt 0:01:19]} Rd8 {[%emt 0:00:40]} 20. Rge1 {[%emt 0:00:56]} Bd6 {[%emt 0:00:34]} 21. Kb1 {[%emt 0:00:56]} h6 {[%emt 0:00:31]} 22. Nxc5 {[%emt 0:00:46]} Qxc5 {[%emt 0:00:30]} 23. g6 {[%emt 0:00:41]} f6 {[%emt 0:01:07]} 24. Be6 {[%emt 0:00:39]} Qb4 {[%emt 0:00:48]} 25. h5 {[%emt 0:00:38]} Ke7 {[%emt 0:01:23]} 26. Rd3 {[%emt 0:00:39]} Rhf8 {[%emt 0:00:33]} 27. Rf1 {[%emt 0:01:49]} Qc4 {[%emt 0:01:07]} 28. Qg2 {[%emt 0:00:34]} Qh4 {[%emt 0:01:05]} 29. Bg4 {[%emt 0:01:10]} f5 {[%emt 0:00:39]} 30. Bd1 {[%emt 0:00:38]} e4 {[%emt 0:00:35]} 31. Rc3 {[%emt 0:00:30]} Be5 {[%emt 0:00:52]} 32. Rc6 {[%emt 0:00:46]} Rxd5 {[%emt 0:00:28]} 33. Rxa6 {[%emt 0:00:28]} Rfd8 {[%emt 0:00:48]} 34. Be2 {[%emt 0:00:39]} Qh2 {[%emt 0:00:50]} 35. Ra7+ {[%emt 0:00:36]} Ke6 {[%emt 0:00:43]} 36. Qxh2 {[%emt 0:00:32]} Bxh2 {[%emt 0:00:26]} 37. c4 {[%emt 0:00:26]} Rd2 {[%emt 0:00:26]} 38. Rxg7 {[%emt 0:00:36]} Rxe2 {[%emt 0:00:28]} 39. Rb7 {[%emt 0:00:29]} Rdd2 {[%emt 0:00:30]} 40. Rxb5 {[%emt 0:00:26]} f4 {[%emt 0:00:27]} 41. a4 {[%emt 0:00:34]} f3 {[%emt 0:00:26]} 42. a5 {[%emt 0:00:28]} f2 {[%emt 0:00:38]} 43. Ka2 {[%emt 0:00:25]} Be5 {[%emt 0:00:27]} 44. a6 {[%emt 0:00:35]} Re1 {[%emt 0:00:37]} 45. Rxf2 {[%emt 0:00:30]} Rxf2 {[%emt 0:00:27]} 46. g7 {[%emt 0:00:33]} Bxg7 {[%emt 0:00:38]} 47. a7 {[%emt 0:00:27]} Rff1 {[%emt 0:00:31]} 48. Rb6+ {[%emt 0:00:34]} Kf5 {[%emt 0:00:28]} 49. Kb3 0-1